[Event "Grandmaster Triathlon (GM1)"]
[Site "Biel, CH"]
[Date "2025.07.20"]
[Round "14"]
[White "Salem, A.R. Saleh"]
[Black "Fedoseev, Vladimir"]
[Result "0-1"]
[Board "3"]
[TimeControl "180+2"]
[WhiteFideId "9301348"]
[BlackFideId "24130737"]
[WhiteTitle "GM"]
[BlackTitle "GM"]
[WhiteElo "2644"]
[BlackElo "2746"]
[WhiteTeam "UAE"]
[BlackTeam "SLO"]
[WhiteClock "0:00:06"]
[BlackClock "0:00:22"]
[Variant "Standard"]

1. d4 {[%clk 0:03:03]}  d5 {[%clk 0:02:52]} 2. c4 {[%clk 0:03:04]}  dxc4 {[%clk 0:02:53]} 3. Nf3 {[%clk 0:03:04]}  Nf6 {[%clk 0:02:54]} 4. e3 {[%clk 0:03:05]}  e6 {[%clk 0:02:53]} 5. Bxc4 {[%clk 0:03:06]}  a6 {[%clk 0:02:54]} 6. O-O {[%clk 0:03:05]}  Nbd7 {[%clk 0:02:55]} 7. a4 {[%clk 0:02:56]}  b6 {[%clk 0:02:55]} 8. Nc3 {[%clk 0:02:55]}  Bb7 {[%clk 0:02:57]} 9. Qe2 {[%clk 0:02:56]}  Bb4 {[%clk 0:02:57]} 10. Rd1 {[%clk 0:02:48]}  O-O {[%clk 0:02:42]} 11. Bd2 {[%clk 0:02:44]}  Qe7 {[%clk 0:02:34]} 12. Rac1 {[%clk 0:02:42]}  Rfd8 {[%clk 0:02:29]} 13. h3 {[%clk 0:02:38]}  c5 {[%clk 0:02:27]} 14. Be1 {[%clk 0:02:30]}  cxd4 {[%clk 0:02:21]} 15. exd4 {[%clk 0:02:22]}  Nf8 {[%clk 0:02:09]} 16. Bd2 {[%clk 0:02:19]}  Ng6 {[%clk 0:02:02]} 17. Bg5 {[%clk 0:02:09]}  h6 {[%clk 0:02:02]} 18. Be3 {[%clk 0:02:07]}  Bxc3 {[%clk 0:01:24]} 19. bxc3 {[%clk 0:02:07]}  Nd5 {[%clk 0:01:17]} 20. Bxd5 {[%clk 0:01:55]}  Rxd5 {[%clk 0:01:19]} 21. c4 {[%clk 0:01:53]}  Rf5 {[%clk 0:01:20]} 22. Ne1 {[%clk 0:01:44]}  Bc6 {[%clk 0:01:07]} 23. Ra1 {[%clk 0:01:42]}  Rd8 {[%clk 0:00:56]} 24. f3 {[%clk 0:01:19]}  b5 {[%clk 0:00:57]} 25. axb5 {[%clk 0:01:15]}  axb5 {[%clk 0:00:58]} 26. c5 {[%clk 0:01:09]}  e5 {[%clk 0:00:52]} 27. Nc2 {[%clk 0:00:40]}  exd4 {[%clk 0:00:54]} 28. Nxd4 {[%clk 0:00:29]}  Rfd5 {[%clk 0:00:55]} 29. Qf2 {[%clk 0:00:21]}  Ne5 {[%clk 0:00:56]} 30. Rdb1 {[%clk 0:00:03]}  Qd7 {[%clk 0:00:23]} 31. Nxc6 {[%clk 0:00:04]}  Qxc6 {[%clk 0:00:24]} 32. Qe2 {[%clk 0:00:04]}  Nc4 {[%clk 0:00:25]} 33. Bf2 {[%clk 0:00:06]}  Re5 {[%clk 0:00:23]} 34. Qa2 {[%clk 0:00:05]}  Nd2 {[%clk 0:00:22]} 35. Re1 {[%clk 0:00:05]}  Rg5 {[%clk 0:00:22]} 36. Kh1 {[%clk 0:00:04]}  Nxf3 {[%clk 0:00:23]} 37. Red1 {[%clk 0:00:04]}  Nd2 {[%clk 0:00:20]} 38. Rg1 {[%clk 0:00:03]}  Ne4 {[%clk 0:00:21]} 39. Be3 {[%clk 0:00:05]}  Ng3+ {[%clk 0:00:21]} 40. Kh2 {[%clk 0:00:06]}  Qc7 {[%clk 0:00:22]} 0-1

[Event "Grandmaster Triathlon (GM1)"]
[Site "Biel, CH"]
[Date "2025.07.20"]
[Round "15"]
[White "Aravindh, Chithambaram VR."]
[Black "Salem, A.R. Saleh"]
[Result "0-1"]
[Board "1"]
[TimeControl "180+2"]
[WhiteFideId "5072786"]
[BlackFideId "9301348"]
[WhiteTitle "GM"]
[BlackTitle "GM"]
[WhiteElo "2611"]
[BlackElo "2644"]
[WhiteTeam "IND"]
[BlackTeam "UAE"]
[WhiteClock "0:00:03"]
[BlackClock "0:00:07"]
[Variant "Standard"]

1. d4 {[%clk 0:03:03]}  Nf6 {[%clk 0:03:03]} 2. Nf3 {[%clk 0:03:03]}  g6 {[%clk 0:03:05]} 3. c3 {[%clk 0:03:04]}  Bg7 {[%clk 0:03:06]} 4. Bf4 {[%clk 0:03:04]}  O-O {[%clk 0:03:06]} 5. h3 {[%clk 0:03:04]}  d6 {[%clk 0:03:07]} 6. e3 {[%clk 0:03:05]}  Nc6 {[%clk 0:03:04]} 7. Be2 {[%clk 0:02:59]}  Nd7 {[%clk 0:03:05]} 8. Bh2 {[%clk 0:02:58]}  e5 {[%clk 0:03:06]} 9. O-O {[%clk 0:02:57]}  f5 {[%clk 0:03:07]} 10. b4 {[%clk 0:02:53]}  Qe7 {[%clk 0:03:08]} 11. b5 {[%clk 0:02:49]}  Nd8 {[%clk 0:03:09]} 12. a4 {[%clk 0:02:50]}  Nf7 {[%clk 0:03:09]} 13. c4 {[%clk 0:02:50]}  g5 {[%clk 0:03:08]} 14. Nc3 {[%clk 0:02:50]}  Nf6 {[%clk 0:03:00]} 15. c5 {[%clk 0:02:25]}  e4 {[%clk 0:02:24]} 16. cxd6 {[%clk 0:02:25]}  cxd6 {[%clk 0:02:26]} 17. Nd2 {[%clk 0:02:25]}  d5 {[%clk 0:02:22]} 18. Qb3 {[%clk 0:02:26]}  Be6 {[%clk 0:02:21]} 19. Qa3 {[%clk 0:02:26]}  Qxa3 {[%clk 0:02:22]} 20. Rxa3 {[%clk 0:02:27]}  Rfc8 {[%clk 0:02:23]} 21. Rc1 {[%clk 0:02:24]}  Bf8 {[%clk 0:02:25]} 22. Rb3 {[%clk 0:02:20]}  b6 {[%clk 0:02:07]} 23. Kf1 {[%clk 0:02:13]}  h5 {[%clk 0:02:05]} 24. Ke1 {[%clk 0:02:10]}  h4 {[%clk 0:02:06]} 25. Kd1 {[%clk 0:02:08]}  Bd6 {[%clk 0:01:59]} 26. Bxd6 {[%clk 0:02:03]}  Nxd6 {[%clk 0:02:00]} 27. Na2 {[%clk 0:01:58]}  f4 {[%clk 0:01:49]} 28. Rxc8+ {[%clk 0:01:43]}  Rxc8 {[%clk 0:01:50]} 29. Bf1 {[%clk 0:01:44]}  Nf5 {[%clk 0:01:32]} 30. Nb4 {[%clk 0:01:45]}  Bd7 {[%clk 0:01:17]} 31. Nb1 {[%clk 0:01:38]}  fxe3 {[%clk 0:01:17]} 32. fxe3 {[%clk 0:01:38]}  Ng3 {[%clk 0:01:18]} 33. Be2 {[%clk 0:01:26]}  g4 {[%clk 0:01:08]} 34. hxg4 {[%clk 0:01:22]}  Nxe2 {[%clk 0:00:56]} 35. Kxe2 {[%clk 0:01:23]}  Bxg4+ {[%clk 0:00:53]} 36. Kf2 {[%clk 0:01:24]}  Bd1 {[%clk 0:00:39]} 37. Rc3 {[%clk 0:00:57]}  Rf8 {[%clk 0:00:40]} 38. Rc7 {[%clk 0:00:57]}  Ng4+ {[%clk 0:00:30]} 39. Ke1 {[%clk 0:00:58]}  Nxe3 {[%clk 0:00:31]} 40. Kd2 {[%clk 0:00:53]}  Nxg2 {[%clk 0:00:32]} 41. Nxd5 {[%clk 0:00:54]}  Rf1 {[%clk 0:00:20]} 42. Nbc3 {[%clk 0:00:52]}  h3 {[%clk 0:00:15]} 43. Nxe4 {[%clk 0:00:48]}  h2 {[%clk 0:00:06]} 44. Ndf6+ {[%clk 0:00:20]}  Kf8 {[%clk 0:00:07]} 45. Ng5 {[%clk 0:00:21]}  Rf2+ {[%clk 0:00:09]} 46. Kd3 {[%clk 0:00:22]}  Bc2+ {[%clk 0:00:06]} 47. Rxc2 {[%clk 0:00:12]}  Rxc2 {[%clk 0:00:06]} 48. Kxc2 {[%clk 0:00:13]}  h1=Q {[%clk 0:00:07]} 49. d5 {[%clk 0:00:08]}  Ne3+ {[%clk 0:00:06]} 50. Kd3 {[%clk 0:00:09]}  Nxd5 {[%clk 0:00:06]} 51. Nfe4 {[%clk 0:00:10]}  Qd1+ {[%clk 0:00:06]} 52. Kc4 {[%clk 0:00:10]}  Ne3+ {[%clk 0:00:06]} 53. Kc3 {[%clk 0:00:11]}  Qxa4 {[%clk 0:00:06]} 54. Kd3 {[%clk 0:00:08]}  Nf5 {[%clk 0:00:07]} 55. Nc3 {[%clk 0:00:03]}  Qd4+ {[%clk 0:00:07]} 0-1

[Event "Grandmaster Triathlon (GM1)"]
[Site "Biel, CH"]
[Date "2025.07.20"]
[Round "15"]
[White "Fedoseev, Vladimir"]
[Black "Svane, Frederik"]
[Result "1-0"]
[Board "2"]
[TimeControl "180+2"]
[WhiteFideId "24130737"]
[BlackFideId "12923044"]
[WhiteTitle "GM"]
[BlackTitle "GM"]
[WhiteElo "2746"]
[BlackElo "2553"]
[WhiteTeam "SLO"]
[BlackTeam "GER"]
[WhiteClock "0:00:13"]
[BlackClock "0:00:00"]
[Variant "Standard"]

1. d4 {[%clk 0:03:02]}  Nf6 {[%clk 0:03:03]} 2. c4 {[%clk 0:03:04]}  e6 {[%clk 0:03:05]} 3. Nf3 {[%clk 0:03:05]}  d5 {[%clk 0:03:06]} 4. Nc3 {[%clk 0:03:06]}  Bb4 {[%clk 0:03:06]} 5. Qa4+ {[%clk 0:03:06]}  Nc6 {[%clk 0:03:07]} 6. e3 {[%clk 0:03:07]}  O-O {[%clk 0:03:08]} 7. Qc2 {[%clk 0:03:08]}  Na5 {[%clk 0:03:09]} 8. cxd5 {[%clk 0:02:56]}  exd5 {[%clk 0:03:09]} 9. Bd3 {[%clk 0:02:57]}  c5 {[%clk 0:03:04]} 10. dxc5 {[%clk 0:02:49]}  Nc6 {[%clk 0:02:29]} 11. O-O {[%clk 0:02:37]}  Bxc5 {[%clk 0:02:29]} 12. Rd1 {[%clk 0:02:29]}  Qe7 {[%clk 0:01:35]} 13. Nxd5 {[%clk 0:01:30]}  Nxd5 {[%clk 0:01:35]} 14. Bxh7+ {[%clk 0:01:30]}  Kh8 {[%clk 0:01:37]} 15. Rxd5 {[%clk 0:01:30]}  Nb4 {[%clk 0:01:38]} 16. Qxc5 {[%clk 0:00:53]}  Nxd5 {[%clk 0:01:38]} 17. Qxd5 {[%clk 0:00:54]}  Kxh7 {[%clk 0:01:38]} 18. Bd2 {[%clk 0:00:42]}  Bg4 {[%clk 0:01:10]} 19. Nd4 {[%clk 0:00:37]}  Rfd8 {[%clk 0:00:56]} 20. Qb5 {[%clk 0:00:38]}  a6 {[%clk 0:00:52]} 21. Qd3+ {[%clk 0:00:38]}  Kg8 {[%clk 0:00:53]} 22. h3 {[%clk 0:00:39]}  Be6 {[%clk 0:00:48]} 23. Qe4 {[%clk 0:00:39]}  Qf6 {[%clk 0:00:33]} 24. Bc3 {[%clk 0:00:40]}  Qh6 {[%clk 0:00:10]} 25. Qxb7 {[%clk 0:00:31]}  Bd5 {[%clk 0:00:12]} 26. Qc7 {[%clk 0:00:29]}  Qg6 {[%clk 0:00:12]} 27. f3 {[%clk 0:00:28]}  Rac8 {[%clk 0:00:11]} 28. Qf4 {[%clk 0:00:29]}  Be6 {[%clk 0:00:05]} 29. Kh2 {[%clk 0:00:29]}  Qh6 {[%clk 0:00:05]} 30. Qxh6 {[%clk 0:00:30]}  gxh6 {[%clk 0:00:05]} 31. a3 {[%clk 0:00:24]}  Rc4 {[%clk 0:00:06]} 32. Rd1 {[%clk 0:00:25]}  f5 {[%clk 0:00:04]} 33. Kg3 {[%clk 0:00:25]}  Kf7 {[%clk 0:00:05]} 34. Kf4 {[%clk 0:00:26]}  Rd5 {[%clk 0:00:05]} 35. Rh1 {[%clk 0:00:22]}  h5 {[%clk 0:00:04]} 36. Kg5 {[%clk 0:00:22]}  Bd7 {[%clk 0:00:03]} 37. f4 {[%clk 0:00:23]}  Rc8 {[%clk 0:00:04]} 38. Kh4 {[%clk 0:00:16]}  Rg8 {[%clk 0:00:04]} 39. Rg1 {[%clk 0:00:17]}  Rd6 {[%clk 0:00:05]} 40. Nf3 {[%clk 0:00:17]}  Ke8 {[%clk 0:00:04]} 41. Bd4 {[%clk 0:00:15]}  Bc6 {[%clk 0:00:05]} 42. Ng5 {[%clk 0:00:16]}  Kd7 {[%clk 0:00:03]} 43. Kxh5 {[%clk 0:00:15]}  Bd5 {[%clk 0:00:03]} 44. Kh4 {[%clk 0:00:17]}  Rc6 {[%clk 0:00:04]} 45. g4 {[%clk 0:00:13]}  fxg4 {[%clk 0:00:00]} 1-0

[Event "Grandmaster Triathlon (GM1)"]
[Site "Biel, CH"]
[Date "2025.07.20"]
[Round "15"]
[White "Murzin, Volodar"]
[Black "Wojtaszek, Radoslaw"]
[Result "1/2-1/2"]
[Board "3"]
[TimeControl "180+2"]
[WhiteFideId "44155573"]
[BlackFideId "1118358"]
[WhiteTitle "GM"]
[BlackTitle "GM"]
[WhiteElo "2669"]
[BlackElo "2610"]
[WhiteTeam "FID"]
[BlackTeam "POL"]
[WhiteClock "0:00:09"]
[BlackClock "0:00:16"]
[Variant "Standard"]

1. Nf3 {[%clk 0:03:03]}  c5 {[%clk 0:03:03]} 2. g3 {[%clk 0:03:03]}  b6 {[%clk 0:03:05]} 3. Bg2 {[%clk 0:03:04]}  Bb7 {[%clk 0:03:06]} 4. O-O {[%clk 0:03:02]}  Nf6 {[%clk 0:03:06]} 5. d3 {[%clk 0:03:01]}  g6 {[%clk 0:03:05]} 6. e4 {[%clk 0:02:55]}  d6 {[%clk 0:03:06]} 7. Nc3 {[%clk 0:02:52]}  Bg7 {[%clk 0:03:07]} 8. Nd2 {[%clk 0:02:44]}  Nc6 {[%clk 0:03:03]} 9. Nc4 {[%clk 0:02:43]}  O-O {[%clk 0:03:00]} 10. Bf4 {[%clk 0:02:41]}  Rc8 {[%clk 0:02:54]} 11. a4 {[%clk 0:02:37]}  a6 {[%clk 0:02:50]} 12. Re1 {[%clk 0:02:35]}  Nd7 {[%clk 0:02:48]} 13. Bg5 {[%clk 0:02:29]}  h6 {[%clk 0:02:42]} 14. Bd2 {[%clk 0:02:25]}  Nd4 {[%clk 0:02:36]} 15. Ne3 {[%clk 0:02:25]}  b5 {[%clk 0:02:32]} 16. axb5 {[%clk 0:02:16]}  axb5 {[%clk 0:02:34]} 17. h4 {[%clk 0:02:11]}  h5 {[%clk 0:02:31]} 18. Ne2 {[%clk 0:02:08]}  Nxe2+ {[%clk 0:02:13]} 19. Qxe2 {[%clk 0:02:09]}  b4 {[%clk 0:02:12]} 20. Ra2 {[%clk 0:02:04]}  Ra8 {[%clk 0:02:10]} 21. Rea1 {[%clk 0:02:04]}  Bxb2 {[%clk 0:02:06]} 22. Rxa8 {[%clk 0:02:00]}  Bxa8 {[%clk 0:02:07]} 23. Ra7 {[%clk 0:01:59]}  Bg7 {[%clk 0:02:01]} 24. Nd5 {[%clk 0:01:50]}  Bxd5 {[%clk 0:01:51]} 25. exd5 {[%clk 0:01:50]}  Ne5 {[%clk 0:01:52]} 26. Bh3 {[%clk 0:01:47]}  Re8 {[%clk 0:01:46]} 27. Bg5 {[%clk 0:01:12]}  Qb6 {[%clk 0:01:09]} 28. Rxe7 {[%clk 0:00:45]}  Rxe7 {[%clk 0:00:57]} 29. Bxe7 {[%clk 0:00:46]}  Qb7 {[%clk 0:00:33]} 30. Bxd6 {[%clk 0:00:45]}  Qxd5 {[%clk 0:00:34]} 31. Bxe5 {[%clk 0:00:41]}  Bxe5 {[%clk 0:00:34]} 32. Bf1 {[%clk 0:00:24]}  Kg7 {[%clk 0:00:30]} 33. Kh2 {[%clk 0:00:16]}  Bd4 {[%clk 0:00:29]} 34. Bg2 {[%clk 0:00:15]}  Qd6 {[%clk 0:00:29]} 35. Bf3 {[%clk 0:00:15]}  Bf6 {[%clk 0:00:14]} 36. Kg2 {[%clk 0:00:16]}  Bd4 {[%clk 0:00:15]} 37. Be4 {[%clk 0:00:12]}  Qf6 {[%clk 0:00:15]} 38. Bd5 {[%clk 0:00:13]}  Qe5 {[%clk 0:00:15]} 39. Qf3 {[%clk 0:00:10]}  Qf6 {[%clk 0:00:16]} 40. Qxf6+ {[%clk 0:00:09]} 1/2-1/2

[Event "Grandmaster Triathlon (GM1)"]
[Site "Biel, CH"]
[Date "2025.07.20"]
[Round "16"]
[White "Aravindh, Chithambaram VR."]
[Black "Fedoseev, Vladimir"]
[Result "0-1"]
[Board "1"]
[TimeControl "180+2"]
[WhiteFideId "5072786"]
[BlackFideId "24130737"]
[WhiteTitle "GM"]
[BlackTitle "GM"]
[WhiteElo "2611"]
[BlackElo "2746"]
[WhiteTeam "IND"]
[BlackTeam "SLO"]
[WhiteClock "0:00:03"]
[BlackClock "0:00:19"]
[Variant "Standard"]

1. d4 {[%clk 0:03:03]}  d5 {[%clk 0:02:54]} 2. c4 {[%clk 0:03:03]}  dxc4 {[%clk 0:02:56]} 3. Nf3 {[%clk 0:02:57]}  Nf6 {[%clk 0:02:57]} 4. e3 {[%clk 0:02:58]}  e6 {[%clk 0:02:57]} 5. Bxc4 {[%clk 0:02:58]}  a6 {[%clk 0:02:59]} 6. O-O {[%clk 0:02:56]}  Nbd7 {[%clk 0:03:00]} 7. a4 {[%clk 0:02:48]}  b6 {[%clk 0:02:59]} 8. Nc3 {[%clk 0:02:41]}  Bb7 {[%clk 0:03:00]} 9. b3 {[%clk 0:02:28]}  Bd6 {[%clk 0:02:53]} 10. Bb2 {[%clk 0:02:27]}  O-O {[%clk 0:02:52]} 11. d5 {[%clk 0:02:22]}  Qe7 {[%clk 0:02:23]} 12. dxe6 {[%clk 0:02:19]}  fxe6 {[%clk 0:02:23]} 13. Nd4 {[%clk 0:02:03]}  Ne5 {[%clk 0:02:24]} 14. Bxe6+ {[%clk 0:01:54]}  Kh8 {[%clk 0:02:25]} 15. Bh3 {[%clk 0:01:45]}  Rad8 {[%clk 0:02:12]} 16. Qc2 {[%clk 0:01:40]}  Neg4 {[%clk 0:01:59]} 17. Nf5 {[%clk 0:01:08]}  Qe5 {[%clk 0:01:01]} 18. f4 {[%clk 0:01:01]}  Qc5 {[%clk 0:00:52]} 19. b4 {[%clk 0:01:01]}  Qxb4 {[%clk 0:00:39]} 20. Bxg4 {[%clk 0:00:59]}  Nxg4 {[%clk 0:00:36]} 21. Na2 {[%clk 0:01:00]}  Qc5 {[%clk 0:00:30]} 22. Bxg7+ {[%clk 0:00:24]}  Kg8 {[%clk 0:00:31]} 23. Qxc5 {[%clk 0:00:24]}  Bxc5 {[%clk 0:00:32]} 24. Bxf8 {[%clk 0:00:23]}  Rxf8 {[%clk 0:00:34]} 25. Nd4 {[%clk 0:00:23]}  Re8 {[%clk 0:00:20]} 26. Nc1 {[%clk 0:00:24]}  Nxe3 {[%clk 0:00:20]} 27. Ncb3 {[%clk 0:00:24]}  Nxf1 {[%clk 0:00:17]} 28. Rxf1 {[%clk 0:00:23]}  Bf8 {[%clk 0:00:16]} 29. Kf2 {[%clk 0:00:21]}  c5 {[%clk 0:00:17]} 30. Nf3 {[%clk 0:00:17]}  c4 {[%clk 0:00:18]} 31. Nbd4 {[%clk 0:00:17]}  Bc5 {[%clk 0:00:20]} 32. Kg3 {[%clk 0:00:18]}  Re3 {[%clk 0:00:17]} 33. Nf5 {[%clk 0:00:16]}  Rd3 {[%clk 0:00:18]} 34. Kg4 {[%clk 0:00:13]}  Bxf3+ {[%clk 0:00:17]} 35. gxf3 {[%clk 0:00:12]}  c3 {[%clk 0:00:18]} 36. Rc1 {[%clk 0:00:09]}  b5 {[%clk 0:00:19]} 37. axb5 {[%clk 0:00:10]}  axb5 {[%clk 0:00:21]} 38. Kg5 {[%clk 0:00:10]}  Kf7 {[%clk 0:00:17]} 39. Ng3 {[%clk 0:00:09]}  b4 {[%clk 0:00:17]} 40. Ne4 {[%clk 0:00:11]}  Be3 {[%clk 0:00:18]} 41. Rc2 {[%clk 0:00:10]}  Bd4 {[%clk 0:00:17]} 42. Ra2 {[%clk 0:00:09]}  b3 {[%clk 0:00:18]} 43. Ra6 {[%clk 0:00:07]}  b2 {[%clk 0:00:19]} 44. Nd6+ {[%clk 0:00:07]}  Ke6 {[%clk 0:00:18]} 45. Nf5+ {[%clk 0:00:03]}  Kd5 {[%clk 0:00:19]} 46. Rc6 {[%clk 0:00:03]}  Kxc6 {[%clk 0:00:19]} 0-1

[Event "Grandmaster Triathlon (GM1)"]
[Site "Biel, CH"]
[Date "2025.07.20"]
[Round "16"]
[White "Svane, Frederik"]
[Black "Wojtaszek, Radoslaw"]
[Result "0-1"]
[Board "2"]
[TimeControl "180+2"]
[WhiteFideId "12923044"]
[BlackFideId "1118358"]
[WhiteTitle "GM"]
[BlackTitle "GM"]
[WhiteElo "2553"]
[BlackElo "2610"]
[WhiteTeam "GER"]
[BlackTeam "POL"]
[WhiteClock "0:00:09"]
[BlackClock "0:00:25"]
[Variant "Standard"]

1. e4 {[%clk 0:03:03]}  c6 {[%clk 0:03:03]} 2. d4 {[%clk 0:03:04]}  d5 {[%clk 0:03:05]} 3. exd5 {[%clk 0:03:05]}  cxd5 {[%clk 0:03:06]} 4. Nf3 {[%clk 0:03:06]}  Nc6 {[%clk 0:03:07]} 5. c3 {[%clk 0:03:08]}  Bf5 {[%clk 0:03:07]} 6. Qb3 {[%clk 0:03:09]}  Qd7 {[%clk 0:03:06]} 7. Nh4 {[%clk 0:03:10]}  Be6 {[%clk 0:03:05]} 8. Bd3 {[%clk 0:03:10]}  f6 {[%clk 0:03:00]} 9. f4 {[%clk 0:03:11]}  Bf7 {[%clk 0:02:56]} 10. O-O {[%clk 0:03:10]}  e6 {[%clk 0:02:57]} 11. Nd2 {[%clk 0:03:07]}  Bd6 {[%clk 0:02:54]} 12. Ndf3 {[%clk 0:03:06]}  Nge7 {[%clk 0:02:48]} 13. Qd1 {[%clk 0:03:07]}  O-O {[%clk 0:02:41]} 14. Bd2 {[%clk 0:02:51]}  Rae8 {[%clk 0:02:40]} 15. Qc2 {[%clk 0:02:51]}  h6 {[%clk 0:02:28]} 16. Rae1 {[%clk 0:02:41]}  Kh8 {[%clk 0:02:29]} 17. g3 {[%clk 0:02:28]}  a6 {[%clk 0:02:21]} 18. a4 {[%clk 0:02:16]}  Bc7 {[%clk 0:02:20]} 19. Re2 {[%clk 0:02:13]}  f5 {[%clk 0:01:57]} 20. h3 {[%clk 0:01:46]}  Nc8 {[%clk 0:01:41]} 21. g4 {[%clk 0:01:44]}  Nd6 {[%clk 0:01:42]} 22. gxf5 {[%clk 0:01:25]}  exf5 {[%clk 0:01:43]} 23. Ne5 {[%clk 0:01:17]}  Nxe5 {[%clk 0:01:30]} 24. fxe5 {[%clk 0:01:19]}  Ne4 {[%clk 0:01:31]} 25. Nxf5 {[%clk 0:01:09]}  Bg6 {[%clk 0:01:32]} 26. Rxe4 {[%clk 0:00:43]}  dxe4 {[%clk 0:01:14]} 27. Bxe4 {[%clk 0:00:44]}  Bxe5 {[%clk 0:01:16]} 28. dxe5 {[%clk 0:00:13]}  Rxe5 {[%clk 0:01:17]} 29. Bf4 {[%clk 0:00:14]}  Rxe4 {[%clk 0:01:12]} 30. Qxe4 {[%clk 0:00:15]}  Bxf5 {[%clk 0:01:12]} 31. Qd4 {[%clk 0:00:04]}  Bxh3 {[%clk 0:01:09]} 32. Qxd7 {[%clk 0:00:03]}  Bxd7 {[%clk 0:01:10]} 33. Be5 {[%clk 0:00:04]}  Rxf1+ {[%clk 0:01:10]} 34. Kxf1 {[%clk 0:00:06]}  Bxa4 {[%clk 0:01:11]} 35. Kf2 {[%clk 0:00:07]}  Kh7 {[%clk 0:01:12]} 36. Ke3 {[%clk 0:00:06]}  g5 {[%clk 0:01:13]} 37. Bf6 {[%clk 0:00:05]}  Kg6 {[%clk 0:01:14]} 38. Be7 {[%clk 0:00:06]}  Kf5 {[%clk 0:01:15]} 39. Bd8 {[%clk 0:00:04]}  Bc6 {[%clk 0:01:15]} 40. Be7 {[%clk 0:00:04]}  a5 {[%clk 0:01:16]} 41. Bd8 {[%clk 0:00:05]}  a4 {[%clk 0:01:18]} 42. Be7 {[%clk 0:00:06]}  h5 {[%clk 0:01:18]} 43. Bd8 {[%clk 0:00:06]}  b5 {[%clk 0:01:10]} 44. Be7 {[%clk 0:00:08]}  h4 {[%clk 0:01:06]} 45. Bd8 {[%clk 0:00:09]}  Kg6 {[%clk 0:00:51]} 46. Be7 {[%clk 0:00:09]}  Kh5 {[%clk 0:00:52]} 47. Bd8 {[%clk 0:00:10]}  Kg4 {[%clk 0:00:48]} 48. Be7 {[%clk 0:00:11]}  Bd7 {[%clk 0:00:41]} 49. Bd8 {[%clk 0:00:11]}  Kg3 {[%clk 0:00:36]} 50. Bxg5 {[%clk 0:00:10]}  h3 {[%clk 0:00:37]} 51. Bf4 {[%clk 0:00:09]}  Kg2 {[%clk 0:00:38]} 52. c4 {[%clk 0:00:07]}  bxc4 {[%clk 0:00:31]} 53. Kd4 {[%clk 0:00:08]}  Bb5 {[%clk 0:00:31]} 54. Kc5 {[%clk 0:00:09]}  c3 {[%clk 0:00:25]} 0-1

[Event "Grandmaster Triathlon (GM1)"]
[Site "Biel, CH"]
[Date "2025.07.20"]
[Round "16"]
[White "Murzin, Volodar"]
[Black "Salem, A.R. Saleh"]
[Result "0-1"]
[Board "3"]
[TimeControl "180+2"]
[WhiteFideId "44155573"]
[BlackFideId "9301348"]
[WhiteTitle "GM"]
[BlackTitle "GM"]
[WhiteElo "2669"]
[BlackElo "2644"]
[WhiteTeam "FID"]
[BlackTeam "UAE"]
[WhiteClock "0:00:08"]
[BlackClock "0:00:29"]
[Variant "Standard"]

1. d4 {[%clk 0:03:03]}  Nf6 {[%clk 0:03:03]} 2. Nf3 {[%clk 0:03:04]}  g6 {[%clk 0:03:05]} 3. Bg5 {[%clk 0:03:02]}  Bg7 {[%clk 0:03:05]} 4. Nbd2 {[%clk 0:03:01]}  d5 {[%clk 0:03:05]} 5. e3 {[%clk 0:02:59]}  O-O {[%clk 0:03:06]} 6. Be2 {[%clk 0:02:55]}  c5 {[%clk 0:03:07]} 7. O-O {[%clk 0:02:53]}  Qb6 {[%clk 0:03:08]} 8. Rb1 {[%clk 0:02:51]}  Nc6 {[%clk 0:03:07]} 9. a3 {[%clk 0:02:47]}  cxd4 {[%clk 0:03:04]} 10. exd4 {[%clk 0:02:45]}  Nxd4 {[%clk 0:03:04]} 11. Nxd4 {[%clk 0:02:39]}  Qxd4 {[%clk 0:03:05]} 12. Be3 {[%clk 0:02:39]}  Qe5 {[%clk 0:03:01]} 13. c4 {[%clk 0:02:40]}  Rd8 {[%clk 0:02:44]} 14. Nf3 {[%clk 0:02:35]}  Qc7 {[%clk 0:02:44]} 15. Rc1 {[%clk 0:02:33]}  dxc4 {[%clk 0:02:25]} 16. Qa4 {[%clk 0:02:19]}  Bd7 {[%clk 0:02:08]} 17. Qxc4 {[%clk 0:02:15]}  Qxc4 {[%clk 0:02:08]} 18. Bxc4 {[%clk 0:02:15]}  Be8 {[%clk 0:01:58]} 19. Bd4 {[%clk 0:02:01]}  Bc6 {[%clk 0:01:53]} 20. Bc3 {[%clk 0:01:49]}  Bxf3 {[%clk 0:01:53]} 21. gxf3 {[%clk 0:01:50]}  Ne8 {[%clk 0:01:53]} 22. Bb5 {[%clk 0:01:06]}  Nd6 {[%clk 0:01:48]} 23. Bxg7 {[%clk 0:01:00]}  Kxg7 {[%clk 0:01:49]} 24. Bd3 {[%clk 0:01:01]}  Rac8 {[%clk 0:01:50]} 25. Kg2 {[%clk 0:00:53]}  Kf6 {[%clk 0:01:51]} 26. f4 {[%clk 0:00:54]}  Rxc1 {[%clk 0:01:45]} 27. Rxc1 {[%clk 0:00:53]}  Rc8 {[%clk 0:01:47]} 28. Re1 {[%clk 0:00:50]}  Rc5 {[%clk 0:01:45]} 29. Kf3 {[%clk 0:00:50]}  Rh5 {[%clk 0:01:44]} 30. Kg3 {[%clk 0:00:48]}  Rd5 {[%clk 0:01:44]} 31. Re3 {[%clk 0:00:43]}  b6 {[%clk 0:01:43]} 32. Kf3 {[%clk 0:00:43]}  Rh5 {[%clk 0:01:44]} 33. Kg2 {[%clk 0:00:43]}  Rc5 {[%clk 0:01:40]} 34. Re1 {[%clk 0:00:42]}  Rd5 {[%clk 0:01:46]} 35. Re3 {[%clk 0:00:39]}  e6 {[%clk 0:01:46]} 36. Kf3 {[%clk 0:00:32]}  Rh5 {[%clk 0:01:47]} 37. Kg2 {[%clk 0:00:33]}  Rc5 {[%clk 0:01:47]} 38. Re1 {[%clk 0:00:33]}  Rd5 {[%clk 0:01:48]} 39. Re3 {[%clk 0:00:34]}  h6 {[%clk 0:01:50]} 40. Kf3 {[%clk 0:00:31]}  Rh5 {[%clk 0:01:50]} 41. Kg2 {[%clk 0:00:32]}  Rc5 {[%clk 0:01:51]} 42. Re1 {[%clk 0:00:33]}  Rd5 {[%clk 0:01:53]} 43. Re3 {[%clk 0:00:34]}  Rd4 {[%clk 0:01:54]} 44. Kg3 {[%clk 0:00:32]}  g5 {[%clk 0:01:55]} 45. fxg5+ {[%clk 0:00:33]}  hxg5 {[%clk 0:01:56]} 46. b4 {[%clk 0:00:25]}  Ke7 {[%clk 0:01:57]} 47. Kg2 {[%clk 0:00:26]}  f5 {[%clk 0:01:53]} 48. Be2 {[%clk 0:00:23]}  Kf6 {[%clk 0:01:49]} 49. Rc3 {[%clk 0:00:23]}  Rd2 {[%clk 0:01:50]} 50. Kf1 {[%clk 0:00:21]}  Ra2 {[%clk 0:01:46]} 51. Rc6 {[%clk 0:00:15]}  Ke5 {[%clk 0:01:38]} 52. Rc3 {[%clk 0:00:14]}  Ne4 {[%clk 0:01:35]} 53. Re3 {[%clk 0:00:15]}  f4 {[%clk 0:01:24]} 54. Rh3 {[%clk 0:00:10]}  f3 {[%clk 0:00:36]} 55. Bxf3 {[%clk 0:00:08]}  Rxa3 {[%clk 0:00:33]} 56. Bg4 {[%clk 0:00:05]}  Rxh3 {[%clk 0:00:26]} 57. Bxh3 {[%clk 0:00:06]}  a5 {[%clk 0:00:27]} 58. bxa5 {[%clk 0:00:07]}  bxa5 {[%clk 0:00:28]} 59. Bg4 {[%clk 0:00:07]}  a4 {[%clk 0:00:27]} 60. Bd1 {[%clk 0:00:08]}  a3 {[%clk 0:00:29]} 0-1